Cogmind - Beta 13 @@@ ROGUE MODE // 2024.04.13 @ 14:51:18 Player: Olafz Result: Destroyed by G-47 Trooper with Particle Gun Performance ------------- Evolutions (0) 0 Regions Visited (1) 200 Robots Destroyed (15) 75 Value Destroyed (386) 386 Prototype IDs (0) 0 Alien Tech Used (0) 0 Bonus (0) 0 TOTAL SCORE: 661 Bonus ------- None Cogmind --------- Core Integrity 0/250 Matter 247/300 Energy 250/250 System Corruption 0% Temperature Cool (9) Movement Treading (480) Ox4 Location -10/Materials Parts ------- > --- POWER (1) -------- Ion Engine > --- PROPULSION (2) --- Light Treads Compact Wheel > --- UTILITY (2) ------ Huge Storage Unit > --- WEAPON (2) ------- Light Assault Rifle > --- INVENTORY (25) --- Ion Engine Ion Engine Light Ion Engine Light Ion Engine Light Treads Aluminum Leg Aluminum Leg Aluminum Leg Wheel Compact Wheel Compact Wheel Medium Storage Unit Weight Redist. System Peak State ------------ > --- POWER ------------ Ion Engine > --- PROPULSION ------- Aluminum Leg Aluminum Leg > --- UTILITY ---------- Small Storage Unit Medium Storage Unit > --- WEAPON ----------- Medium Laser Light Assault Rifle > --- INVENTORY -------- Light Ion Engine Light Ion Engine Light Treads Light Treads Wheel Compact Wheel Weight Redist. System EM Pulse Gun Light Assault Rifle [Rating: 8] Favorites ----------- Power Ion Engine Engine Ion Engine Propulsion Aluminum Leg Treads Light Treads Leg Aluminum Leg Wheel Compact Wheel Utility Small Storage Unit Storage Small Storage Unit Protection Propulsion Shielding Weapon Light Assault Rifle Energy Gun Medium Laser Ballistic Gun Light Assault Rifle Build | -11 -10 ------- Run | Yrd Mat Slots Evolved . | . . Power . | . . Propulsion . | . . Utility . | . . Weapon . | . . Parts Attached 18 | . 18 Power 4 | . 4 Engine 4 | . 4 Core . | . . Reactor . | . . Propulsion 8 | . 8 Treads 2 | . 2 Leg 4 | . 4 Wheel 2 | . 2 Hover . | . . Flight . | . . Utility 3 | . 3 Device . | . . Storage 2 | . 2 Processor . | . . Hackware . | . . Protection 1 | . 1 Artifact . | . . Weapon 3 | . 3 Energy Gun 1 | . 1 Energy Cannon . | . . Ballistic Gun 2 | . 2 Ballistic Cannon . | . . Launcher . | . . Special Weapon . | . . Impact Weapon . | . . Slashing Weapon . | . . Piercing Weapon . | . . Special Melee Weapon . | . . Unidentified Prototypes . | . . Parts Lost 5 | . 5 Power 1 | . 1 Propulsion . | . . Utility 1 | . 1 Weapon 3 | . 3 Highest Loss Streak 3 | . 3 To Critical Strikes . | . . Average Slot Usage (%) 87 | . 87 Engine 11 | . 11 Treads 1 | . 1 Leg 25 | . 25 Wheel 1 | . 1 Storage 20 | . 20 Protection 3 | . 3 Energy Gun 12 | . 12 Ballistic Gun 9 | . 9 Naked Turns . | . . Heaviest Build 88 | 14 88 Greatest Support 20 | 20 20 Greatest Overweight (x) 8 | . 8 Average Overweight (x) . | . . Largest Inventory Capacity 25 | . 25 Average Capacity 10 | . 10 Most Carried 13 | . 13 Average Carried 9 | . 9 Final Capacity 25 | 8 25 Final Carried 13 | 6 13 Class Distribution -------------------- 84% | Mutant 15% | Scavenger-Mutant Dominant Class ---------------- Mutant | -10/Materials Resources | -11 -10 ----------- Run | Yrd Mat Matter Collected 359 | 200 159 Remotely . | . . Salvage Created 608 | . 608 Parts 40 | . 40 Haulers Intercepted 1 | . 1 Recyclers Shooed 1 | . 1 Parts Field Recycled . | . . Retrieved Matter . | . . Parts Self-Destructed . | . . Prevented . | . . Kills | -11 -10 ------- Run | Yrd Mat Combat Hostiles Destroyed 12 | . 12 Guns 12 | . 12 Classes Destroyed 5 | . 5 Builder 1 | . 1 Hauler 1 | . 1 Recycler 1 | . 1 Swarmer 2 | . 2 Grunt 10 | . 10 Best Kill Streak 4 | . 4 Combat Bots Only 3 | . 3 Max Kills in Single Turn 1 | . 1 Gunslinging . | . . Exploded . | . . Melee . | . . Uniques/NPCs Destroyed . | . . Combat | -11 -10 -------- Run | Yrd Mat Hostile Shots Fired 77 | . 77 Missed 13 | . 13 Damage Taken 924 | . 924 Core 258 | . 258 Absorbed by Shields . | . . Redirected to Shielding 51 | . 51 Core Remaining (%) 100 | 100 . Volleys Fired 54 | . 54 Largest 2 | . 2 Hottest 90 | . 90 Shots Fired 87 | . 87 Gun 87 | . 87 Cannon . | . . Launcher . | . . Special . | . . Kinetic 52 | . 52 Thermal 21 | . 21 Explosive . | . . Electromagnetic 14 | . 14 Robot Hit Streak 25 | . 25 Robot Miss Streak 2 | . 2 Penetration Max . | . . Secondary Targets 2 | . 2 Max Gunslinging Chain 1 | . 1 Shots Hit Robots 69 | . 69 Core Hits 34 | . 34 Critical Kills . | . . Critical Parts Destroyed . | . . Critical Strikes 2 | . 2 Burn 2 | . 2 Melee Attacks . | . . Impact . | . . Slashing . | . . Piercing . | . . Sneak Attacks . | . . Combat Hostiles . | . . Follow-up Attacks . | . . Damage Inflicted 698 | . 698 Guns 695 | . 695 Cannons . | . . Explosions . | . . Melee . | . . Ramming 3 | . 3 Kinetic 340 | . 340 Thermal 189 | . 189 Explosive . | . . Electromagnetic 166 | . 166 Impact . | . . Slashing . | . . Piercing . | . . Highest Corruption . | . . Average Corruption . | . . Corruption Purged . | . . Corruption Blocked . | . . Overload Shots . | . . Overflow Damage . | . . Projectiles . | . . Explosions . | . . Melee . | . . Knockbacks . | . . Impact . | . . Kinetic . | . . Secondary . | . . Self-Inflicted Damage . | . . Shots . | . . Rammed . | . . Targets Rammed 1 | . 1 Kicked 1 | . 1 Crushed . | . . Highest Temperature 272 | . 272 Average Temperature 98 | . 98 Received Heat Transfer 396 | . 396 Effects 2 | . 2 Interference 2 | . 2 Siege Activations . | . . Robots Corrupted . | . . Combat Hostiles . | . . Parts Fried . | . . Impact Corruptions . | . . Robots Melted . | . . Combat Hostiles . | . . Parts Melted 3 | . 3 Heat Transferred 703 | . 703 Parts Sabotaged . | . . Parts Stolen . | . . Parts Stripped . | . . Power Chain Reactions . | . . Alert | -11 -10 ------- Run | Yrd Mat Peak Influence 347 | . 347 Initial . | . . Average 192 | . 192 Maximum Alert Level 1 | . 1 Low Security (%) 45 | . 45 Level 1 54 | . 54 Level 2 . | . . Level 3 . | . . Level 4 . | . . Level 5 . | . . High Security . | . . Max Security . | . . Squads Dispatched 3 | . 3 Investigation 2 | . 2 Extermination . | . . Reinforcement 1 | . 1 Assault . | . . Garrison . | . . Intercept . | . . Searches Triggered . | . . Construction Impeded . | . . Haulers Reinforced . | . . Active Scanning Responses . | . . Cargo Convoy Interrupts . | . . Stealth | -11 -10 --------- Run | Yrd Mat Distress Signals . | . . Communications Jammed . | . . Distress Signals . | . . Times Spotted 20 | . 20 Peak Tracking Total 4 | . 4 Tactical Retreats 2 | . 2 Traps | -11 -10 ------- Run | Yrd Mat Traps Triggered 2 | . 2 Indirectly . | . . Trap Hack Attempts . | . . Triggered . | . . Disarmed . | . . Reprogrammed . | . . Reused . | . . Traps Extracted . | . . Installed . | . . Triggered . | . . Machines | -11 -10 ---------- Run | Yrd Mat Machines Disabled . | . . Max in Single Turn . | . . Machines Repaired . | . . Machines Dismantled . | . . Machines Sabotaged . | . . Overloaded Fab Kills . | . . Hacking | -11 -10 --------- Run | Yrd Mat Machines Accessed 3 | . 3 Terminals 3 | . 3 Fabricators . | . . Repair Stations . | . . Recycling Units . | . . Scanalyzers . | . . Garrison Access . | . . Total Hacks 7 | . 7 Successful 1 | . 1 Failed 6 | . 6 Catastrophic 2 | . 2 Database Lockouts . | . . Manual 6 | . 6 Terminals 7 | . 7 Fabricators . | . . Repair Stations . | . . Recycling Units . | . . Scanalyzers . | . . Garrison Access . | . . Terminal Hacks 1 | . 1 Zone Layout 1 | . 1 Fabricator Hacks . | . . Repair Station Hacks . | . . Recycling Unit Hacks . | . . Scanalyzer . | . . Garrison Access Hacks . | . . Unauthorized Hacks . | . . Terminals . | . . Fabricators . | . . Repair Stations . | . . Recycling Units . | . . Scanalyzers . | . . Garrison Access . | . . Data Cores Recovered . | . . Used . | . . Hacking Detections 3 | . 3 Full Trace Events 2 | . 2 Feedback Events . | . . Feedback Blocked . | . . Robot Schematics Acquired . | . . Robots Built . | . . Authchips . | . . Time . | . . Total Robot Build Rating . | . . Part Schematics Acquired . | . . Parts Built . | . . Authchips . | . . Time . | . . Total Part Build Rating . | . . Parts Repaired . | . . Time . | . . Parts Recycled . | . . Recycled Matter . | . . Retrieved Matter . | . . Retrieved Components . | . . Parts Scanalyzed . | . . Part Schematics Acquired . | . . Parts Damaged . | . . Bothacking | -11 -10 ------------ Run | Yrd Mat Used RIF Installer . | . . Robots Hacked . | . . Non-combat . | . . Combat . | . . Robot Hacks Applied . | . . Relay Couplers Released . | . . Fabnet Peak Effective % . | . . Robots Rewired . | . . Allies Hacked . | . . Hacks Repelled . | . . Allies | -11 -10 -------- Run | Yrd Mat Total Allies . | . . Largest Group . | . . Highest-Rated Group . | . . Highest-Rated Ally . | . . Total Orders . | . . Ally Attacks . | . . Total Damage . | . . Kills . | . . Allies Corrupted . | . . Allies Melted . | . . Intel | -11 -10 ------- Run | Yrd Mat Robot Analysis Total . | . . Derelict Logs Recovered . | . . Drone Launches . | . . Drone Recoveries . | . . Exploration | -11 -10 ------------- Run | Yrd Mat Turns Passed 486 | . 486 Spaces Moved 219 | 1 218 Core . | . . Treads . | . . Legs 202 | 1 201 Wheels 17 | . 17 Hover . | . . Flight . | . . Fastest Speed 120 | 120 120 Average Speed 138 | 120 138 Slowest Speed 200 | 120 200 Overloaded Moves . | . . Propulsion Burnouts . | . . Robots Hopped . | . . Cave-ins Triggered . | . . Exploration Rate (%) 25 | 2 49 Regions Visited 1 Branch Regions . Pre-discovered Areas . | . . Known Exits Taken . | . . Unknown Exits Taken 1 | 1 . Scrap Searched . | . . Spaces Dug . | . . Terrain Destroyed . | . . Melee . | . . Projectile . | . . AOE . | . . Terrain Rammed . | . . Walls Destroyed . | . . Machines Disabled . | . . Actions | -11 -10 --------- Run | Yrd Mat Total 329 | . 329 Wait 22 | . 22 Move 218 | . 218 Hop . | . . Pick Up 4 | . 4 Fast Attach 5 | . 5 Attach 5 | . 5 Detach 6 | . 6 Swap 8 | . 8 Drop 6 | . 6 Fire 54 | . 54 Melee . | . . Ram . | . . Kick 1 | . 1 Crush . | . . Escape Stasis . | . . Rewire . | . . Trap . | . . Miscellaneous . | . . Route ------- -11/Scrapyard -10/Materials (discovered 2 exits: [*Mat] / [*Min]) History --------- Turn | Location | Event 1 | -11/Scrapyard | Discovered new exit (range 0) 1 | -11/Scrapyard | Entered Materials 105 | -10/Materials | Discovered new exit (range 16) 232 | -10/Materials | Core integrity fell below 50% 232 | -10/Materials | Core integrity fell below 20% 262 | -10/Materials | Lost 3 parts (1p2w) 300 | -10/Materials | Build established: Mutant 310 | -10/Materials | Discovered new exit (range 10) 487 | -10/Materials | Destroyed by G-47 Trooper with Particle Gun Last Messages --------------- ALERT: Suspicious activity at Terminal M007. Dispatching Investigation squad. K-01 Serf collects debris. Connecting with Terminal... Acquired Lgt. Ion Engine. EXIT=FOUND G-34 Mercenary destroyed. Switching to secondary target: G-34 Mercenary. G-34 Mercenary destroyed. Acquired 41 matter. R-06 Scavenger destroyed. Acquired 11 matter. Dropped Lgt. Ion Engine. Acquired Ion Engine. Acquired 10 matter. K-01 Serf collects debris. Dropped Sml. Storage Unit. Acquired Com. Wheel. R-06 Scavenger collects Sml. Storage Unit. EM Pulse Gun destroyed. Map ----- +----------------------------------------------------+ | ???????????????????# # #????????????????????? | | #??????????????????# ?????????????????????? | | #??????????????????# ##?????????????????????? | | +??????????????????# #??????????????????????? | | #??????????????????# #??????????????????????? | | #??????????????????# #??????????????????????? | | #??????????????????# #??????????????????????? | | #??????????????????# #??????????????????????? | | #??????????????????# #??????????????????????? | | ########?########### #??????????????????????? | | # ### =%+ #??????????????????????? | | # + + %# #??????????????????????? | | #% """ ### # #??????????????????????? | | +% """ #?# # #??????????????????????? | | #= """ #?# # #??????????????????????? | | # #?# + #??????????????????????? | | ########?# # #??????????????????????? | | #????????# # #????????"?????????????? | | #????????########### ##????? ""?????????????? | | #??????????######## ##### """ "?????????? | | %#######????# ??????????? | | % #????# ??????????????? | | ###### ??????????????????? | | #### #####?????????????????? | | ###### ######g#####???????????????????? | | ###+####### ## @ #???????????????????? | | %%#! ## ## #???????????????????? | | %%" """ ## ## #???????????????????? | | =# "T" + k #???????????????????? | | =# ## ## #???????????????????? | | # ## ## #???????????????????? | | "########## ## !#???????????????????? | | ] #?# ## #???????????????????? | | #?# ##################?????????????? | | #?# #??????# #?????????????? | | ?# *#??????# #?????????????? | | ## !%##?????# ###???????????? | | # # ! #?????# ""#???????????? | | # "!=*####### !!! Y"#???????????? | | # "T[!=%[% + / !!! ""#???????????? | | # # % ####### !!! ###???????????? | | # ?# [=#?????# #?????????????? | | ####+######??#####+#####?????????????? | | ### # #????# #???????????????? | | ?? "" """ """ #????# #???????????????? | | ?? "####"" """ """ #????# #???????????????? | | ??????????#"T """ """ #????# #???????????????? | | ??????????#"" #????# #???????????????? | | ??????????#"" #????## ##???????????????? | | ??????????### #?????# #????????????????? | +----------------------------------------------------+ Best States ------------- Heat Dissipation 25 Energy Generation 10 Energy Capacity 250 Matter Stores 300 Matter Capacity 300 Sight Range 16 Terrain Scan Density 10 Propulsion Shielding 33 Evasion (%) 55 Item Schematics ----------------- None Robot Schematics ------------------ None Fabricated ------------ Nothing Alien Tech Used ----------------- None Achievements -------------- None Challenges ------------ None Game ------ Seed CommNetworkShearcannon Manual? 0 Play Time 00:07:04 Cumulative 49.7 hours Start 2024.04.13 @ 14:22:20 End 2024.04.13 @ 14:51:18 Sessions 1 Manual Loads 0 Difficulty Rogue Special Mode None Game No. 122 Rogue 120 Adventurer 2 Explorer 0 Win Type - Total 0 Types 0/0/0/0/0/0/0/0/0 Lore% 33 Gallery% 40 Achievement% 30 Wizard Run 0 Options --------- Layout 2 ASCII 0 Keyboard 1 Movement Numpad Keybinds 1 Fullscreen 2 Font 24/Smallcaps Map View 50x44 Zoom Use 0% Tactical HUD 1 Map Filters NONE Filters NONE Steam 1 RUN: f717afce-760f-482f-bf2c-7ac18e5df494